bitfinex/quotes_ETHUSD_20250504
["timestamp","ask_amount","ask_price","bid_price","bid_amount"]
[1746379036759,0.19881233,1833.0,1832.7,5.45629519]
[1746379037558,0.30605336,1832.9,1832.7,5.45629519]
[1746379037968,0.19881233,1832.8,1832.7,5.45629519]
[1746379038137,9.2180639,1833.1,1832.7,5.45629519]
[1746379038331,0.19881233,1833.0,1832.7,5.45629519]
[1746379039568,0.19881233,1833.0,1832.8,5.45608346]
[1746379039760,0.30633705,1832.9,1832.8,5.45608346]
[1746379040158,0.50514938,1832.9,1832.8,5.51064018]
[1746379040360,0.50514938,1832.9,1832.8,6.24358346]
[1746379040675,0.50514938,1832.9,1832.8,7.41357133]
[1746379042678,0.50514938,1832.9,1832.8,6.24358346]
[1746379044987,0.50514938,1832.9,1832.8,6.29813948]
[1746379045892,0.19881233,1832.9,1832.8,6.29813948]
[1746379046394,10.677,1833.5,1833.1,5.45495061]
[1746379046895,0.3066844,1833.4,1833.2,5.45489517]
[1746379047191,0.3066844,1833.4,1833.2,5.45471178]
[1746379047363,0.3066844,1833.4,1833.3,6.20774462]
[1746379047980,0.3066844,1833.4,1833.3,6.26228763]
[1746379048568,0.3066844,1833.4,1833.3,6.20774462]
[1746379051417,0.3066844,1833.4,1833.3,7.42853022]
[1746379051587,0.3066844,1833.4,1833.3,7.37399026]
[1746379051906,0.20201442,1833.4,1833.3,7.37399026]
[1746379052106,3.0,1833.6,1833.3,7.37399026]
[1746379052313,0.20201442,1833.5,1833.3,6.20774462]
[1746379052686,0.20201442,1833.5,1833.3,6.20751483]
[1746379053306,0.20201442,1833.5,1833.2,5.45478417]
[1746379053518,0.8087,1833.4,1833.2,5.45478417]
[1746379053881,0.20201442,1833.3,1833.2,5.45478417]
[1746379054082,0.50827687,1833.3,1833.2,5.45478417]
[1746379055102,0.20201442,1833.3,1833.2,5.45478417]
[1746379055321,0.20201442,1833.3,1833.2,6.62109161]
[1746379060412,0.20201442,1833.3,1833.2,6.675635]
[1746379063229,0.8087,1833.5,1833.3,5.45449584]
[1746379063931,0.30617121,1833.4,1833.2,5.4547652]
[1746379064271,0.30617121,1833.4,1833.2,10.90950038]
[1746379064636,0.30617121,1833.4,1833.2,5.45473518]
[1746379064955,0.8087,1833.5,1833.2,5.45473518]
[1746379066363,0.8087,1833.5,1833.3,5.45462916]
[1746379066871,0.5112694,1833.4,1833.2,5.4547887]
[1746379067573,0.30625714,1833.3,1833.2,5.4547887]
[1746379067965,0.51113315,1833.3,1833.2,5.4547887]
[1746379072088,1.33273315,1833.3,1832.9,0.8023]
[1746379072269,7.46613359,1833.3,1832.9,6.25796603]
[1746379072445,7.46613359,1833.3,1832.5,3.68898689]
[1746379072446,0.8216,1833.1,1832.5,4.49128689]
[1746379072646,12.41694361,1833.1,1832.7,5.45628851]
[1746379072845,0.51011138,1833.0,1832.7,5.45628851]
[1746379073051,0.51011138,1833.0,1832.6,5.45655013]
[1746379073354,0.51011138,1833.0,1832.7,5.45642153]
[1746379073888,0.30625714,1832.9,1832.7,5.45642153]
[1746379074454,0.20385424,1832.8,1832.7,5.45642153]
[1746379074785,0.30625714,1832.9,1832.7,5.45642153]
[1746379075082,0.20385424,1832.8,1832.7,5.45642153]
[1746379075766,0.30625714,1832.9,1832.7,5.45642153]
[1746379075956,0.20385424,1832.8,1832.7,5.45642153]
[1746379076157,0.30625714,1832.9,1832.7,5.45642153]
[1746379076387,0.20385424,1832.8,1832.7,5.45642153]
[1746379076571,0.30625714,1832.9,1832.7,5.45642153]
[1746379076887,0.20385424,1832.8,1832.7,5.45642153]
[1746379077282,0.30625714,1832.9,1832.7,5.45642153]
[1746379077497,0.20385424,1832.8,1832.7,5.45642153]
[1746379077706,1.02545424,1832.8,1832.6,5.45660771]
[1746379077873,0.8216,1832.8,1832.6,5.45660771]
[1746379078079,0.19731291,1832.7,1832.6,5.45660771]
[1746379078775,0.50357005,1832.7,1832.6,5.45660771]
[1746379078989,0.30625714,1832.7,1832.6,5.45660771]
[1746379080807,0.50336558,1832.7,1832.5,5.45686689]
[1746379081802,0.50336558,1832.7,1832.4,9.99329218]
[1746379081966,0.19710844,1832.7,1832.5,5.45695859]
[1746379085403,0.19710844,1832.7,1832.4,9.99329218]
[1746379088421,0.19710844,1832.7,1832.5,5.45702369]
[1746379089797,0.8146,1832.6,1832.5,5.45702369]
[1746379090002,1.01177659,1832.6,1832.4,5.45713753]
[1746379095024,1.01177659,1832.6,1832.4,5.45711993]
[1746379095221,1.01177659,1832.6,1832.4,5.45711346]
[1746379095432,0.19717659,1832.6,1832.5,5.45702592]
[1746379095920,0.793,1832.7,1832.5,5.45702592]
[1746379096125,0.19629051,1832.6,1832.5,5.45702592]
[1746379096431,0.793,1832.7,1832.5,5.45702592]
[1746379096653,0.19629051,1832.6,1832.5,5.45702592]
[1746379097008,0.793,1832.7,1832.5,5.45702592]
[1746379097241,0.19629051,1832.6,1832.5,5.45702592]
[1746379097537,0.50254379,1832.6,1832.5,5.45702592]
[1746379097735,0.30625328,1832.6,1832.4,5.45711346]
[1746379097948,0.50254379,1832.6,1832.4,5.45711346]
[1746379098353,0.19629051,1832.6,1832.4,5.45711346]
[1746379098523,0.793,1832.7,1832.5,5.45702592]
[1746379098857,0.19629051,1832.6,1832.4,5.45715601]
[1746379099154,0.793,1832.7,1832.4,5.45715601]
[1746379099322,0.19629051,1832.6,1832.4,5.45715601]
[1746379099523,0.793,1832.7,1832.4,5.45715601]
[1746379099833,0.50284804,1832.6,1832.4,5.45715601]
[1746379100150,0.50284804,1832.6,1832.4,5.45711572]
[1746379100354,0.50284804,1832.6,1832.5,5.45702592]
[1746379102328,0.50284804,1832.6,1832.5,8.45764367]
[1746379102642,0.50284804,1832.6,1832.5,8.40307762]
[1746379103137,0.19629051,1832.6,1832.5,8.40307762]
[1746379103440,6.14,1832.9,1832.5,0.7538]
[1746379103612,0.18597086,1832.6,1832.5,6.21082592]
[1746379103815,6.14,1832.9,1832.6,5.45644201]
[1746379104019,0.18692584,1832.8,1832.6,10.91288402]
[1746379104237,6.14,1832.9,1832.6,10.91288402]
[1746379104430,6.14,1832.9,1832.7,5.45638882]
[1746379104629,0.30720338,1832.8,1832.7,5.45638882]
[1746379107045,0.95192372,1832.8,1832.6,5.45644201]
[1746379107719,0.95192372,1832.8,1832.4,5.45716175]
[1746379107911,1.13750338,1832.7,1832.4,5.45716175]
[1746379108556,6.59393993,1832.7,1832.3,5.4574847]
[1746379108716,0.30720338,1832.6,1832.3,5.4574847]
[1746379109445,0.30720338,1832.6,1832.2,5.45781661]
[1746379109446,1.13750338,1832.5,1832.2,5.45777345]
[1746379109645,7.27750338,1832.5,1832.2,5.51234613]
[1746379110050,0.30720338,1832.4,1832.3,5.45749393]
[1746379110949,0.30720338,1832.4,1832.3,6.31446661]
[1746379111120,6.14,1832.5,1832.4,5.45732372]
[1746379111521,6.14,1832.5,1832.4,9.68372243]
[1746379111737,6.32692584,1832.5,1832.4,9.62915445]
[1746379112249,6.32692584,1832.5,1832.4,7.43690275]
[1746379113749,0.18692584,1832.5,1832.4,7.43690275]
[1746379113945,3.0,1832.8,1832.5,5.45675069]
[1746379114141,0.18719868,1832.7,1832.6,5.45669823]
[1746379114360,0.49432393,1832.7,1832.6,5.45669823]
[1746379116233,0.49432393,1832.7,1832.6,7.40500584]
[1746379117055,0.18719868,1832.7,1832.6,6.54804312]
[1746379117226,0.18719868,1832.7,1832.6,5.45669823]
[1746379117546,0.18706226,1832.7,1832.6,5.45648901]
[1746379117755,6.14,1832.9,1832.7,5.45641807]
[1746379117953,0.49413858,1832.8,1832.7,5.45641807]
[1746379118156,0.49413858,1832.8,1832.6,5.45648901]
[1746379118520,1.28253858,1832.8,1832.6,5.45648901]
[1746379118923,0.30707632,1832.7,1832.6,5.45648901]
[1746379119326,0.49413858,1832.7,1832.6,5.45648901]
[1746379121431,0.49413858,1832.7,1832.6,6.54783923]
[1746379123300,0.49413858,1832.7,1832.6,7.41090021]
[1746379123446,0.49413858,1832.7,1832.6,7.35633923]
[1746379123653,0.18706226,1832.7,1832.6,7.35633923]
[1746379123984,6.14,1832.9,1832.8,5.45613269]
[1746379124480,6.32678941,1832.9,1832.8,5.45613269]
[1746379124700,6.63378671,1832.9,1832.8,5.45613269]
[1746379125395,0.49378671,1832.9,1832.8,5.45613269]
[1746379126588,0.49378671,1832.9,1832.7,5.45631826]
[1746379127259,0.3069973,1832.8,1832.7,5.45631826]
[1746379127460,0.3069973,1832.8,1832.7,7.43542132]
[1746379127673,0.47852006,1832.8,1832.7,7.43541519]
[1746379128261,0.17152276,1832.8,1832.7,7.43541519]
[1746379128791,3.67240436,1833.3,1833.1,5.45516896]
[1746379128996,6.9617,1833.4,1833.1,5.45516896]
[1746379129198,0.30679129,1833.3,1833.1,5.45516896]
[1746379129801,0.30679129,1833.2,1833.1,5.45516896]
[1746379131610,0.30679129,1833.2,1833.1,6.67602273]
[1746379132582,6.14,1833.4,1833.3,5.45464462]
[1746379133401,6.4464357,1833.4,1833.3,5.45464462]
[1746379140208,0.3064357,1833.4,1833.3,5.45464462]
[1746379141907,0.46929682,1833.4,1833.3,5.45464462]
[1746379142909,0.46929682,1833.4,1833.2,5.45494027]
[1746379143285,0.3064357,1833.3,1833.2,5.45494027]
[1746379143796,0.46929682,1833.3,1833.2,5.45494027]
[1746379145712,1.22869682,1833.3,1832.9,5.2978]
[1746379145891,0.3064357,1833.2,1832.9,5.45567287]
[1746379146393,0.16286112,1833.1,1832.9,10.91127465]
[1746379147209,0.16286112,1833.1,1832.9,5.45560178]
[1746379147408,0.16286112,1833.1,1832.9,10.91122922]
[1746379147603,6.8994,1833.3,1832.9,10.91122922]
[1746379147806,0.1623827,1833.0,1832.9,5.45560178]
[1746379148326,13.58945503,1833.3,1832.9,5.45560178]
[1746379148509,0.1623827,1833.0,1832.9,5.45560178]
[1746379148691,0.3063609,1833.2,1832.9,5.45560178]
[1746379148879,0.1623827,1833.0,1832.9,5.45560178]
[1746379149081,0.3063609,1833.2,1832.9,5.45560178]
[1746379149305,0.1623827,1833.0,1832.9,5.45560178]
[1746379149505,13.58945503,1833.3,1832.9,5.45560178]
[1746379149704,0.1623827,1833.0,1832.9,5.45560178]
[1746379149892,8.13479334,1833.3,1832.9,5.45560178]
[1746379150112,0.1623827,1833.0,1832.9,5.45560178]
[1746379150318,13.58944795,1833.3,1832.9,5.45560178]
[1746379150497,1.3589448,1833.2,1832.9,5.45560178]
[1746379150697,0.1623827,1833.2,1832.9,5.45560178]
[1746379151109,0.30654415,1833.1,1832.9,5.45560178]
[1746379151696,0.1623827,1833.0,1832.9,5.45560178]
[1746379152201,0.46892685,1833.0,1832.9,5.45560178]
[1746379154094,0.46892685,1833.0,1832.9,6.22850178]
[1746379154296,0.1623827,1833.0,1832.9,7.45151458]
[1746379154708,6.14,1833.3,1833.1,5.45505969]
[1746379155231,0.30677405,1833.2,1833.1,5.45505969]
[1746379155815,0.30677405,1833.2,1833.1,6.28250955]
[1746379156636,6.14,1833.3,1833.2,5.45494217]
[1746379156840,6.3023827,1833.3,1833.2,5.45494217]
[1746379157542,6.60931781,1833.3,1833.2,5.45494217]
[1746379157842,0.46931781,1833.3,1833.2,5.45494217]
[1746379158007,0.46931781,1833.3,1833.2,5.50948646]
[1746379158207,0.46931781,1833.3,1833.2,6.68323107]
[1746379160056,0.1623827,1833.3,1833.2,6.68323107]
[1746379160210,6.14,1833.5,1833.4,5.45434711]
[1746379160632,6.30381787,1833.5,1833.4,5.45434711]
[1746379160838,6.61065861,1833.5,1833.3,5.45448328]
[1746379161542,6.61065861,1833.5,1833.3,10.90891365]
[1746379161853,0.30684074,1833.4,1833.3,5.45443037]
[1746379162346,0.47065861,1833.4,1833.3,5.45443037]
[1746379163421,0.47065861,1833.4,1833.3,7.37329833]
[1746379164156,0.16381787,1833.4,1833.3,7.37329833]
[1746379164447,6.14,1833.7,1833.6,5.45375218]
[1746379164646,3.16607284,1833.7,1833.6,5.45375218]
[1746379165025,3.47273073,1833.7,1833.6,5.45375218]
[1746379167950,0.47273073,1833.7,1833.6,5.45375218]
[1746379169644,1.30553073,1833.7,1833.4,5.45416115]
[1746379170021,2.59541019,1833.7,1833.3,5.45445909]
[1746379170348,2.59541019,1833.7,1833.3,10.90892044]
[1746379170534,0.30665789,1833.6,1833.3,5.45445909]
[1746379171049,0.16798593,1833.5,1833.3,5.45445909]
[1746379171546,0.16798593,1833.5,1833.3,5.45441705]
[1746379171850,9.76847086,1833.7,1833.3,5.45453563]
[1746379172150,1.14483302,1833.6,1833.3,5.45453563]
[1746379172447,0.3063843,1833.5,1833.3,5.45453563]
[1746379172962,0.3063843,1833.5,1833.1,5.45500541]
[1746379172963,0.16798593,1833.4,1833.1,5.45500541]
[1746379173124,6.30798593,1833.4,1833.1,5.50955156]
[1746379173450,6.30798593,1833.4,1833.2,5.45493035]
[1746379173754,6.30798593,1833.4,1833.1,5.45513727]
[1746379173955,0.30639969,1833.3,1833.1,5.45513727]
[1746379174559,0.16791761,1833.2,1833.1,5.45513727]
[1746379174850,0.16791761,1833.2,1833.1,7.36558635]
[1746379175045,6.14,1833.4,1833.1,7.36558635]
[1746379175250,6.14,1833.4,1833.0,3.66496899]
[1746379175451,5.45515514,1833.2,1833.0,3.66496899]
[1746379175754,11.75762376,1833.1,1833.0,3.66496899]
[1746379175919,11.92554137,1833.1,1833.0,3.66496899]
[1746379176435,5.45555036,1833.0,1832.6,9.12154791]
[1746379176616,0.16545757,1832.9,1832.6,9.12154791]
[1746379176817,0.96915757,1832.9,1832.6,9.12154791]
[1746379177450,0.96915757,1832.9,1832.7,5.45642531]
[1746379178683,0.96915757,1832.9,1832.6,9.12151851]
[1746379180478,0.96915757,1832.9,1832.6,3.66496899]
[1746379180628,0.96915757,1832.9,1832.5,6.28599323]
[1746379181164,0.30624986,1832.8,1832.6,5.4567168]
[1746379181756,0.15836565,1832.7,1832.6,5.4567168]
[1746379182163,0.8037,1832.9,1832.6,5.4567168]
[1746379182328,0.15836565,1832.7,1832.6,5.4567168]
[1746379182527,0.8037,1832.9,1832.6,5.4567168]
[1746379182738,2.04362703,1832.9,1832.6,5.4567168]
[1746379182939,0.15836565,1832.8,1832.6,5.4567168]
[1746379183435,0.8037,1832.9,1832.6,5.4567168]
[1746379183659,0.15836565,1832.7,1832.6,5.4567168]
[1746379184366,0.8037,1832.9,1832.6,5.4567168]
[1746379184564,0.15836565,1832.7,1832.6,5.45654982]
[1746379184879,0.8037,1832.9,1832.7,5.45642032]
[1746379185644,6.95403056,1832.9,1832.4,0.7615]
[1746379185853,6.26480308,1832.8,1832.4,5.45711802]
[1746379186046,1.11441828,1832.7,1832.4,5.45719127]
[1746379186230,1.11441828,1832.7,1832.4,10.91428329]
[1746379186644,0.8085,1832.7,1832.4,10.91428329]
[1746379186831,0.15665672,1832.6,1832.5,5.45702592]
[1746379187234,0.8085,1832.7,1832.5,5.45702592]
[1746379187466,0.15665672,1832.6,1832.5,5.45702592]
[1746379187644,0.15665672,1832.6,1832.4,5.45716301]
[1746379187845,0.8085,1832.7,1832.4,5.45716301]
[1746379188463,0.15665672,1832.6,1832.4,5.45716301]
[1746379188862,0.8085,1832.7,1832.4,5.45716301]
[1746379189459,0.15665672,1832.6,1832.4,5.45716301]
[1746379190062,6.14,1832.6,1832.4,5.45716301]
[1746379190268,0.15665672,1832.5,1832.4,5.45716301]
[1746379196575,0.94755672,1832.5,1832.2,5.45777576]
[1746379196968,0.94755672,1832.5,1832.2,5.45770121]
[1746379199391,0.94755672,1832.5,1832.2,5.45789308]
[1746379203101,0.30631704,1832.4,1832.2,5.45789308]
[1746379203267,0.15319246,1832.3,1832.2,5.45789308]
[1746379203593,0.30631704,1832.4,1832.2,5.45789308]
[1746379203898,0.15319246,1832.3,1832.2,5.45789308]
[1746379204096,0.7909,1832.5,1832.2,5.45789308]
[1746379204296,0.15319246,1832.4,1832.2,5.45789308]
[1746379205796,0.30673627,1832.3,1832.2,5.45789308]
[1746379206095,0.45755792,1832.3,1832.2,5.45789308]
[1746379206298,1.28855792,1832.3,1832.0,5.45834133]
[1746379206597,1.28855792,1832.3,1832.1,5.45819359]
[1746379206796,0.98182165,1832.3,1832.1,5.45819359]
[1746379207473,0.30679936,1832.2,1832.1,5.45819359]
[1746379207678,0.45734741,1832.2,1832.1,5.45819359]
[1746379209389,0.45734741,1832.2,1832.1,7.43714163]
[1746379209798,0.15054805,1832.2,1832.1,7.43714163]
[1746379210201,6.14,1832.4,1832.2,5.45766328]
[1746379210386,6.14,1832.4,1832.3,5.45762156]
[1746379210585,0.7581,1832.7,1832.3,5.45762156]
[1746379210586,6.14,1832.6,1832.4,5.45713548]
[1746379211469,0.30688471,1832.5,1832.4,5.45713548]
[1746379212876,0.30688471,1832.5,1832.4,5.51170644]
[1746379213074,0.30688471,1832.5,1832.4,6.69078592]
[1746379215077,0.30688471,1832.5,1832.4,6.63621496]
[1746379215302,0.30688471,1832.5,1832.4,5.45713548]
[1746379216678,0.4593022,1832.5,1832.4,5.45713548]
[1746379225316,0.4593022,1832.5,1832.4,5.51170411]
[1746379225716,0.15241749,1832.5,1832.4,5.51170411]
[1746379225919,6.14,1832.7,1832.4,5.51170411]
[1746379225920,6.14,1832.7,1832.5,5.45675585]
[1746379226125,6.14,1832.7,1832.6,5.45672814]
[1746379226417,6.447105,1832.7,1832.6,5.45672814]
[1746379226789,6.447105,1832.7,1832.5,5.45680636]
[1746379227814,0.307105,1832.6,1832.5,5.45680636]
[1746379228020,0.307105,1832.6,1832.4,5.45720445]
[1746379228320,0.307105,1832.5,1832.4,5.45720445]
[1746379228918,0.307105,1832.5,1832.3,5.45746614]
[1746379229123,1.062805,1832.5,1832.3,5.45761667]
[1746379230013,0.307105,1832.4,1832.3,5.45761667]
[1746379230701,0.307105,1832.4,1832.2,10.91545555]
[1746379231822,0.66843573,1832.3,1832.2,5.45769189]
[1746379232706,0.66843573,1832.3,1832.2,7.11113875]
[1746379239207,0.66843573,1832.3,1832.2,5.45769189]
[1746379251645,1.48273573,1832.3,1831.8,3.66496899]
[1746379251826,3.8143,1832.2,1831.8,3.66496899]
[1746379252025,3.8143,1832.2,1831.8,9.12385963]
[1746379252324,0.36105723,1832.1,1831.8,9.12385963]
[1746379252646,0.307105,1832.0,1831.8,9.12385963]
[1746379252823,0.66809384,1832.0,1831.8,9.12385963]
[1746379253015,0.307105,1832.0,1831.8,9.12384424]
[1746379253354,0.8143,1832.2,1831.9,5.45859827]
[1746379253549,0.8143,1832.2,1832.0,5.45838781]
[1746379253716,0.8143,1832.2,1831.9,5.45859827]
[1746379253912,0.8143,1832.2,1832.0,5.45835836]
[1746379254112,0.30704778,1832.1,1832.0,5.45835836]
[1746379254934,0.30704778,1832.1,1832.0,6.17122946]
[1746379255648,6.14,1832.3,1832.1,5.45808973]
[1746379256257,0.30703946,1832.2,1832.1,5.45808973]
[1746379258279,0.30703946,1832.2,1832.1,6.21728973]
[1746379258419,0.30703946,1832.2,1832.1,6.27187049]
[1746379258618,0.30703946,1832.2,1832.1,7.39032774]
[1746379258819,6.14,1832.5,1832.2,5.45777331]
[1746379259058,13.78900959,1832.6,1832.2,5.45777331]
[1746379259255,6.2302304,1832.5,1832.1,5.45804413]
[1746379259454,0.7732,1832.4,1832.1,5.45804413]
[1746379259653,6.85356212,1832.4,1832.0,5.45835287]
[1746379259861,0.30716872,1832.3,1832.0,10.91663382]
[1746379260046,0.30716872,1832.3,1832.1,5.45817356]
[1746379261056,0.30716872,1832.2,1832.1,5.45817356]
[1746379261825,0.63559055,1832.2,1832.1,5.45817356]
[1746379262025,0.30716872,1832.2,1832.0,5.45828095]
[1746379262225,1.40879055,1832.2,1831.9,9.98472582]
[1746379262553,0.32842183,1832.1,1831.9,5.45877874]
[1746379262724,6.77559055,1832.1,1831.9,5.45877874]
[1746379263036,0.32842183,1832.0,1831.9,5.45877874]
[1746379263353,0.63559055,1832.0,1831.9,5.45877874]
[1746379264971,0.63559055,1832.0,1831.8,5.45899938]
[1746379265554,0.30716872,1831.9,1831.8,5.45899938]
[1746379265762,0.30716872,1831.9,1831.7,5.45924066]
[1746379265763,1.07856872,1831.9,1831.7,5.45924066]
[1746379266073,0.32842183,1831.8,1831.7,5.45921788]
[1746379267037,0.7714,1832.0,1831.8,5.45900556]
[1746379268541,0.30690955,1831.9,1831.8,5.45900556]
[1746379269168,6.44690955,1831.9,1831.8,5.45900556]
[1746379269560,6.14,1831.9,1831.8,5.45900556]
[1746379272982,6.44687162,1831.9,1831.8,5.45900556]
[1746379273675,6.44687162,1831.9,1831.7,5.45938833]
[1746379274673,0.30687162,1831.8,1831.7,5.45938833]
[1746379276006,6.14,1831.9,1831.8,5.45911125]
[1746379276779,6.46430676,1831.9,1831.8,5.45911125]
[1746379277001,6.77113136,1831.9,1831.8,5.45911125]
[1746379278693,6.46430676,1831.9,1831.8,5.45911125]
[1746379280106,6.46430676,1831.9,1831.7,5.45922954]
[1746379280302,7.19305744,1831.9,1831.6,9.98358166]
[1746379280491,0.30694515,1831.8,1831.6,5.45958166]
[1746379281093,0.32430676,1831.7,1831.6,5.45958166]
[1746379281612,0.8232,1831.8,1831.5,5.45985646]
[1746379281794,0.32300337,1831.7,1831.5,5.45985646]
[1746379281995,0.63006112,1831.7,1831.4,5.46017894]
[1746379282200,0.63006112,1831.7,1831.4,5.4600894]
[1746379282201,1.32130867,1831.7,1831.4,5.4600894]
[1746379282395,0.63006112,1831.7,1831.4,5.4600894]
[1746379282600,0.30705775,1831.6,1831.4,5.4600894]
[1746379283095,0.32300337,1831.5,1831.4,5.4600894]
[1746379283607,6.28243239,1831.8,1831.4,5.4600894]
[1746379283811,0.32300337,1831.7,1831.4,5.4600894]
[1746379284015,0.98354695,1831.7,1831.5,5.45985913]
[1746379284307,0.32300337,1831.7,1831.5,5.45985913]
[1746379285411,0.32300337,1831.7,1831.6,5.45970735]
[1746379285991,0.62984168,1831.7,1831.6,5.45970735]
[1746379286512,0.62984168,1831.7,1831.5,5.4598126]
[1746379286692,6.76984168,1831.7,1831.5,5.4598126]
[1746379287214,6.46300337,1831.7,1831.5,5.4598126]
[1746379287378,6.46300337,1831.7,1831.6,5.45970735]
[1746379288000,6.46300337,1831.7,1831.5,5.45980957]
[1746379288233,6.46300337,1831.7,1831.6,5.45970735]
[1746379289319,6.76994568,1831.7,1831.6,5.45970735]
[1746379312146,6.76994568,1831.7,1831.5,5.45997899]
[1746379312352,6.76994568,1831.7,1831.5,5.45977224]
[1746379312518,6.76994568,1831.7,1831.3,0.7569]
[1746379312717,0.30694231,1831.6,1831.4,5.46014613]
[1746379312953,0.30694231,1831.6,1831.5,5.45997739]
[1746379320834,0.30694231,1831.6,1831.5,7.41058641]
[1746379321055,6.14,1831.9,1831.8,6.26311125]
[1746379321537,6.14,1831.9,1831.8,6.31769775]
[1746379321955,6.43198078,1831.9,1831.8,6.31769775]
[1746379322662,0.29198078,1831.9,1831.8,6.31769775]
[1746379322861,3.67615161,1832.2,1832.1,5.45821734]
[1746379323061,6.14,1832.3,1832.2,5.45791944]
[1746379323669,6.44701583,1832.3,1832.2,5.45791944]
[1746379323964,6.44701583,1832.3,1832.2,6.26191944]
[1746379324658,7.27731583,1832.3,1831.9,5.45866246]
[1746379324963,7.92201741,1832.3,1832.0,5.45836998]
[1746379325265,0.30701583,1832.2,1832.0,5.45836998]
[1746379325863,0.30701583,1832.1,1832.0,5.45836998]
[1746379331365,0.30701583,1832.1,1831.8,6.26302705]
[1746379331560,0.30701583,1832.1,1831.8,10.91800602]
[1746379331765,0.30701583,1832.1,1831.8,5.45897897]
[1746379332133,0.30701583,1832.0,1831.8,5.45888684]
[1746379332339,0.30701583,1832.0,1831.9,5.45881325]
[1746379333734,0.30701583,1832.0,1831.8,5.45899337]
[1746379334668,0.7568,1832.1,1831.8,5.45899337]
[1746379334836,0.7568,1832.1,1831.8,5.45889341]
[1746379335236,0.7568,1832.1,1831.9,5.45879618]
[1746379335473,0.7568,1832.1,1831.8,5.45892281]
[1746379335474,1.44648,1832.1,1831.8,5.45892281]
[1746379336266,6.90488672,1832.1,1831.6,5.45957071]
[1746379336469,0.7866,1831.9,1831.6,5.45957071]
[1746379336880,0.29162072,1831.8,1831.6,5.45957071]
[1746379338475,6.2461315,1831.7,1831.4,4.523]
[1746379338670,11.88847369,1831.6,1831.2,9.90563664]
[1746379338870,6.42873347,1831.6,1831.3,5.46039416]
[1746379340068,6.42873347,1831.6,1831.2,9.90561187]
[1746379340368,6.42873347,1831.6,1831.3,5.46034685]
[1746379341571,6.42873347,1831.6,1830.8,3.66698499]
[1746379341572,0.8029,1831.3,1830.8,3.66698499]
[1746379341876,6.26430668,1831.1,1830.8,3.66698499]
[1746379342174,5.46179474,1830.9,1830.8,3.66698499]
[1746379342374,11.60179474,1830.9,1830.8,3.66698499]
[1746379342572,11.88550674,1830.9,1830.8,3.66698499]
[1746379342869,13.40424449,1830.9,1830.8,3.66698499]
[1746379343075,13.7109635,1830.9,1830.8,3.66698499]
[1746379343471,8.24916876,1830.9,1830.8,3.66698499]
[1746379343676,13.7109635,1830.9,1830.8,3.66698499]
[1746379344172,14.5138635,1830.9,1830.8,3.66698499]
[1746379344795,9.05206876,1830.9,1830.8,3.66698499]
[1746379346682,8.74534975,1830.9,1830.8,0.002016]
[1746379348596,7.226612,1830.9,1830.8,0.002016]
[1746379357395,12.68840674,1830.9,1830.8,0.002016]
[1746379357899,15.68840674,1830.9,1830.8,0.002016]
[1746379360902,15.99359948,1830.9,1830.8,0.002016]
[1746379363311,16.54359948,1830.9,1830.8,0.002016]
[1746379363509,19.0053363,1830.9,1830.8,0.002016]
[1746379363872,19.0053363,1830.9,1830.1,0.7971]
[1746379363873,0.7691,1830.6,1830.1,0.7971]
[1746379364074,0.7691,1830.6,1830.2,5.46374439]
[1746379364075,10.93747746,1830.5,1830.2,5.46374439]
[1746379364383,16.40049367,1830.5,1830.1,6.26106608]
[1746379364883,16.81536037,1830.5,1830.1,6.26106608]
[1746379365084,1.68153604,1830.4,1830.1,6.26106608]
[1746379365469,0.26949346,1830.3,1830.1,6.26106608]
[1746379366215,0.26949346,1830.3,1830.0,5.4643384]
[1746379366598,0.26949346,1830.3,1830.0,5.46425827]
[1746379366799,0.26949346,1830.3,1830.0,10.92849988]
[1746379367187,0.26949346,1830.3,1830.1,5.46413418]
[1746379368879,6.137984,1830.2,1830.1,5.46413418]
[1746379369279,6.40747746,1830.2,1830.1,5.46413418]
[1746379370484,6.40747746,1830.2,1830.1,6.28853418]
[1746379372699,6.40747746,1830.2,1830.1,0.8244]
[1746379373012,6.40747746,1830.2,1830.1,6.28858228]
[1746379373415,6.137984,1830.2,1830.1,6.28858228]
[1746379373717,6.40472302,1830.2,1830.1,6.28858228]
[1746379374088,0.26673902,1830.2,1830.1,6.28858228]
[1746379374411,6.137984,1830.6,1830.5,5.46298825]
[1746379374781,6.68968727,1830.6,1830.5,5.46298825]
[1746379379621,6.68968727,1830.6,1830.5,6.24808825]
[1746379380242,6.68968727,1830.6,1830.5,7.41922475]
[1746379381103,6.68968727,1830.6,1830.5,6.24808825]
[1746379381524,6.68968727,1830.6,1830.3,5.46341799]
[1746379382244,0.30677136,1830.5,1830.3,5.46341799]
[1746379382542,0.24842878,1830.4,1830.3,5.46341799]
[1746379383539,6.948484,1830.6,1830.3,5.46341799]
[1746379383708,0.24842878,1830.4,1830.3,5.46341799]
[1746379383906,6.948484,1830.6,1830.3,5.46341799]
[1746379384135,0.24842878,1830.5,1830.3,10.92680352]
[1746379384339,0.24842878,1830.5,1830.3,5.46338553]
[1746379384523,0.24842878,1830.5,1830.4,5.46328671]
[1746379384721,0.24842878,1830.5,1830.3,5.46340617]
[1746379385447,0.24842878,1830.5,1830.2,6.2684528]
[1746379385622,0.24842878,1830.5,1830.2,6.2683862]
[1746379386414,0.24842878,1830.5,1830.2,6.2683554]
[1746379386645,0.24842878,1830.5,1830.2,6.26833217]
[1746379386808,0.24842878,1830.5,1830.3,5.46352384]
[1746379387010,0.30701031,1830.4,1830.1,5.46399922]
[1746379387214,7.5014865,1830.4,1830.0,11.73335196]
[1746379387520,6.137984,1830.3,1830.0,5.46432598]
[1746379387736,0.30701031,1830.2,1830.0,5.46432598]
[1746379388048,0.55176062,1830.2,1830.0,5.46432598]
[1746379388411,0.24475031,1830.2,1830.0,5.46432598]
[1746379388608,3.88302374,1830.2,1829.8,5.3357]
[1746379388806,3.88302374,1830.2,1829.8,5.46503667]
[1746379388807,10.15758283,1830.2,1829.8,5.46503667]
[1746379389311,0.30687532,1830.1,1829.8,5.46503667]
[1746379389536,0.24399126,1830.0,1829.7,5.46528536]
[1746379389814,6.38197526,1830.0,1829.8,5.46496347]
[1746379390418,6.38197526,1830.0,1829.7,5.46521205]
[1746379390626,12.48468678,1830.0,1829.6,9.13048434]
[1746379390821,7.02017279,1830.0,1829.6,9.13048434]
[1746379391151,14.90034623,1829.9,1829.6,3.66496899]
[1746379391654,0.24295604,1829.8,1829.5,3.66496899]
[1746379391839,2.06391004,1829.8,1829.5,3.66496899]
[1746379392016,1.820954,1829.8,1829.5,3.66496899]
[1746379392211,0.24295604,1829.7,1829.6,5.46567555]
[1746379392437,6.38094004,1829.7,1829.6,5.46567555]
[1746379393031,6.38094004,1829.7,1829.6,6.23987555]
[1746379396561,6.38094004,1829.7,1829.6,6.29452939]
[1746379396866,6.38094004,1829.7,1829.6,10.02386181]
[1746379397670,6.38094004,1829.7,1829.6,9.96920797]